Cogmind - Beta 14 @@@ ROGUE MODE // 2024.12.01 @ 20:20:59 Player: Shimmyarah Result: Destroyed by H-61 Shepherd with Heavy Assault Cannon Performance ------------- Evolutions (2) 1000 Regions Visited (5) 1000 Robots Destroyed (24) 120 Value Destroyed (530) 530 Prototype IDs (3) 60 Alien Tech Used (0) 0 Bonus (335) 335 TOTAL SCORE: 3045 Bonus ------- High Alert Combat Kills 35 Aligned with FarCom 300 Cogmind --------- Core Integrity 0/550 Matter 160/300 Energy 0/100 System Corruption 4% Temperature Cool (29) Movement Flying (26) Location -8/Materials Parts ------- > --- POWER (1) -------- (None) > --- PROPULSION (3) --- Surge Thruster Surge Thruster Surge Thruster > --- UTILITY (3) ------ Improved Signal Interpreter Improved Terrain Scan Processor Target Analyzer > --- WEAPON (4) ------- (None) > --- INVENTORY (5) ---- Seismic Detector Peak State ------------ > --- POWER ------------ (None) > --- PROPULSION ------- Improved Hover Unit Airjet VTOL Module > --- UTILITY ---------- Improved Signal Interpreter Improved Terrain Scan Processor Target Analyzer > --- WEAPON ----------- XL Autogun Array > --- INVENTORY -------- Mining Laser [Rating: 52] Favorites ----------- Power Ion Engine Engine Ion Engine Propulsion Aluminum Leg Leg Aluminum Leg Hover Unit Airjet Flight Unit VTOL Module Utility Improved Terrain Scanner Device Improved Terrain Scanner Storage Small Storage Unit Processor Improved Terrain Scan Processor Protection Hardened Medium Armor Plating Weapon Light Assault Rifle Ballistic Gun Light Assault Rifle Special Weapon Mining Laser Build | -11 -10 -10 -10 -9 -8 ------- Run | Yrd Mat Min Exi Min Mat Slots Evolved 4 | . . . . . 4 Power . | . . . . . . Propulsion 1 | . . . . . 1 Utility 1 | . . . . . 1 Weapon 2 | . . . . . 2 Parts Attached 30 | 1 2 . 5 1 21 Power 2 | . 1 . . 1 . Engine 2 | . 1 . . 1 . Core . | . . . . . . Reactor . | . . . . . . Propulsion 10 | . . . 1 . 9 Treads . | . . . . . . Leg 1 | . . . 1 . . Wheel . | . . . . . . Hover 4 | . . . . . 4 Flight 5 | . . . . . 5 Utility 12 | 1 1 . 4 . 6 Device 6 | 1 1 . 3 . 1 Storage 1 | . . . 1 . . Processor 4 | . . . . . 4 Hackware . | . . . . . . Protection 1 | . . . . . 1 Artifact . | . . . . . . Weapon 6 | . . . . . 6 Energy Gun . | . . . . . . Energy Cannon . | . . . . . . Ballistic Gun 4 | . . . . . 4 Ballistic Cannon . | . . . . . . Launcher . | . . . . . . Special Weapon 2 | . . . . . 2 Impact Weapon . | . . . . . . Slashing Weapon . | . . . . . . Piercing Weapon . | . . . . . . Special Melee Weapon . | . . . . . . Unidentified Prototypes 3 | . . . 2 . 1 Parts Lost 10 | . . . . 1 9 Power 1 | . . . . 1 . Propulsion 5 | . . . . . 5 Utility 3 | . . . . . 3 Weapon 1 | . . . . . 1 Highest Loss Streak 3 | . . . . 1 3 To Critical Strikes . | . . . . . . Average Slot Usage (%) 85 | . 100 100 99 98 50 Engine 11 | . 14 14 14 12 4 Leg 22 | . 28 28 28 28 8 Hover 1 | . . . . . 6 Flight 1 | . . . . . 3 Device 15 | . 14 14 17 28 8 Storage 7 | . 14 14 9 . . Processor 4 | . . . . . 14 Ballistic Gun 21 | . 28 28 28 28 4 Peak Build Rating 52 | 8 9 9 18 12 52 Average Rating 14 | 6 8 9 9 11 29 On Entrance 9 | 6 8 9 9 12 12 Naked Turns . | . . . . . . Heaviest Build 28 | 13 13 13 13 9 28 Greatest Support 20 | 20 20 20 20 20 20 Greatest Overweight (x) 9 | . . . . . 9 Average Overweight (x) . | . . . . . . Largest Inventory Capacity 8 | 8 8 8 8 5 5 Average Capacity 6 | 8 8 8 7 5 5 Most Carried 8 | 8 8 8 8 5 5 Average Carried 6 | 7 7 7 7 5 4 Final Capacity 8 | 8 8 8 5 5 5 Final Carried 8 | 8 8 8 5 5 1 Class Distribution -------------------- 69% | Mutant 14% | Scavenger-Skirmisher 13% | Scavenger-Mutant Dominant Class ---------------- Mutant | -10/Materials Mutant | -10/Mines Mutant | -10/Exiles Scavenger-Skirmisher | -9/Mines Mutant | -8/Materials Resources | -11 -10 -10 -10 -9 -8 ----------- Run | Yrd Mat Min Exi Min Mat Matter Collected 781 | 290 60 2 10 . 419 Remotely . | . . . . . . Salvage Created 784 | 213 160 . . 89 322 Parts 65 | 25 12 . . 4 24 Haulers Intercepted 1 | . . . . . 1 Recyclers Shooed 1 | . 1 . . . . Parts Field Recycled . | . . . . . . Retrieved Matter . | . . . . . . Parts Self-Destructed . | . . . . . . Prevented . | . . . . . . Kills | -11 -10 -10 -10 -9 -8 ------- Run | Yrd Mat Min Exi Min Mat Combat Hostiles Destroyed 12 | . 3 . . 2 7 Guns 12 | . 3 . . 2 7 Classes Destroyed 9 | 3 3 . . . 3 Worker 1 | 1 . . . . . Tunneler 7 | 7 . . . . . Hauler 1 | . . . . . 1 Recycler 1 | 1 . . . . . Operator 1 | . 1 . . . . Watcher 1 | . 1 . . . . Cutter 3 | . . . . . 3 Grunt 8 | . 3 . . 2 3 Sentry 1 | . . . . . 1 Best Kill Streak 4 | 4 3 . . 2 3 Combat Bots Only 3 | . 2 . . 2 3 Max Kills in Single Turn 1 | 1 1 . . 1 1 Gunslinging . | . . . . . . Exploded . | . . . . . . Melee . | . . . . . . Uniques/NPCs Destroyed . | . . . . . . Combat | -11 -10 -10 -10 -9 -8 -------- Run | Yrd Mat Min Exi Min Mat Hostile Shots Fired 182 | . 8 . . 24 150 Missed 68 | . . . . 5 63 Damage Taken 1971 | . 91 . . 251 1629 Core 662 | . . . . 64 598 Absorbed by Shields . | . . . . . . Core Remaining (%) 87 | 100 . . . 74 . Volleys Fired 102 | 43 17 1 . 14 27 Largest 2 | 2 2 2 . 2 1 Hottest 100 | 40 40 40 . 40 100 Shots Fired 176 | 86 34 2 . 28 26 Gun 173 | 86 34 2 . 28 23 Cannon . | . . . . . . Launcher . | . . . . . . Special 3 | . . . . . 3 Kinetic 173 | 86 34 2 . 28 23 Thermal 3 | . . . . . 3 Explosive . | . . . . . . Electromagnetic . | . . . . . . Robot Hit Streak 12 | 7 7 1 . 5 12 Robot Miss Streak 6 | 3 5 1 . 3 6 Penetration Max . | . . . . . . Secondary Targets 1 | . . . . 1 . Max Gunslinging Chain 1 | . . . . 1 . Shots Hit Robots 99 | 50 17 1 . 14 17 Core Hits 48 | 17 10 . . 7 14 Critical Kills . | . . . . . . Critical Parts Destroyed 1 | . . . . 1 . Critical Strikes 1 | . . . . 1 . Destroy 1 | . . . . 1 . Melee Attacks . | . . . . . . Impact . | . . . . . . Slashing . | . . . . . . Piercing . | . . . . . . Sneak Attacks . | . . . . . . Combat Hostiles . | . . . . . . Follow-up Attacks . | . . . . . . Damage Inflicted 1585 | 389 137 14 . 107 938 Guns 1556 | 389 137 7 . 107 916 Cannons . | . . . . . . Explosions . | . . . . . . Melee . | . . . . . . Ramming 29 | . . 7 . . 22 Kinetic 1556 | 389 137 7 . 107 916 Thermal . | . . . . . . Explosive . | . . . . . . Electromagnetic . | . . . . . . Impact . | . . . . . . Slashing . | . . . . . . Piercing . | . . . . . . Highest Corruption 4 | . . . . . 4 Average Corruption 4 | . . . . . 4 Corruption Purged . | . . . . . . Corruption Blocked . | . . . . . . Effects 3 | . . . . . 3 Matter Fused 1 | . . . . . 1 Energy Discharges 1 | . . . . . 1 Weapon Failures 1 | . . . . . 1 Overload Shots . | . . . . . . Overflow Damage . | . . . . . . Projectiles . | . . . . . . Explosions . | . . . . . . Melee . | . . . . . . Knockbacks . | . . . . . . Impact . | . . . . . . Kinetic . | . . . . . . Secondary . | . . . . . . Self-Inflicted Damage 6 | . . . . . 6 Shots . | . . . . . . Rammed 5 | . . . . . 5 Targets Rammed 10 | . . 1 . . 9 Kicked 5 | . . 1 . . 4 Crushed . | . . . . . . Highest Temperature 168 | . 18 . . 42 168 Average Temperature 34 | . 7 . . 20 46 Received Heat Transfer 702 | . 48 . . 141 513 Siege Activations . | . . . . . . Robots Corrupted . | . . . . . . Combat Hostiles . | . . . . . . Parts Fried . | . . . . . . Impact Corruptions . | . . . . . . Robots Melted . | . . . . . . Combat Hostiles . | . . . . . . Parts Melted . | . . . . . . Heat Transferred . | . . . . . . Parts Sabotaged . | . . . . . . Parts Stolen . | . . . . . . Parts Stripped . | . . . . . . Power Chain Reactions . | . . . . . . Alert | -11 -10 -10 -10 -9 -8 ------- Run | Yrd Mat Min Exi Min Mat Peak Influence 814 | 45 145 56 . 40 814 Initial 56 | . 29 56 . . 15 Average 143 | 17 85 56 . 32 234 Maximum Alert Level 3 | . . . . . 3 Low Security (%) 83 | 100 100 100 . 100 68 Level 1 3 | . . . . . 6 Level 2 10 | . . . . . 21 Level 3 1 | . . . . . 3 Level 4 . | . . . . . . Level 5 . | . . . . . . High Security . | . . . . . . Max Security . | . . . . . . Squads Dispatched 7 | . 2 . . . 5 Investigation 2 | . 1 . . . 1 Extermination . | . . . . . . Reinforcement 5 | . 1 . . . 4 Assault . | . . . . . . Garrison . | . . . . . . Intercept . | . . . . . . Searches Triggered . | . . . . . . Construction Impeded . | . . . . . . Haulers Reinforced . | . . . . . . Active Scanning Responses . | . . . . . . Cargo Convoy Interrupts . | . . . . . . Stealth | -11 -10 -10 -10 -9 -8 --------- Run | Yrd Mat Min Exi Min Mat Distress Signals 8 | . . . . . 8 Communications Jammed . | . . . . . . Distress Signals . | . . . . . . Times Spotted 80 | . 8 2 . 2 68 Peak Tracking Total 13 | . 2 2 . 2 13 Tactical Retreats 13 | . 1 . . . 12 Traps | -11 -10 -10 -10 -9 -8 ------- Run | Yrd Mat Min Exi Min Mat Traps Triggered 1 | . . . . . 1 Indirectly . | . . . . . . Trap Hack Attempts . | . . . . . . Triggered . | . . . . . . Disarmed . | . . . . . . Reprogrammed . | . . . . . . Reused . | . . . . . . Traps Extracted . | . . . . . . Installed . | . . . . . . Triggered . | . . . . . . Machines | -11 -10 -10 -10 -9 -8 ---------- Run | Yrd Mat Min Exi Min Mat Machines Disabled 2 | . . . . . 2 Max in Single Turn 1 | . . . . . 1 Machines Repaired . | . . . . . . Machines Dismantled . | . . . . . . Machines Sabotaged . | . . . . . . Overloaded Fab Kills . | . . . . . . Hacking | -11 -10 -10 -10 -9 -8 --------- Run | Yrd Mat Min Exi Min Mat Machines Accessed 12 | . 1 . 4 . 7 Terminals 8 | . 1 . . . 7 Fabricators . | . . . . . . Repair Stations . | . . . . . . Recycling Units . | . . . . . . Scanalyzers . | . . . . . . Garrison Access . | . . . . . . Total Hacks 70 | . 5 . 49 . 16 Successful 55 | . 2 . 49 . 4 Failed 15 | . 3 . . . 12 Catastrophic 5 | . . . . . 5 Database Lockouts . | . . . . . . Manual 13 | . 4 . 1 . 8 Terminals 21 | . 5 . . . 16 Fabricators . | . . . . . . Repair Stations . | . . . . . . Recycling Units . | . . . . . . Scanalyzers . | . . . . . . Garrison Access . | . . . . . . Terminal Hacks 54 | . 1 . 49 . 4 Record 49 | . . . 49 . . Robot Analysis 2 | . 1 . . . 1 Maintenance Status 1 | . . . . . 1 Surveillance Status 1 | . . . . . 1 Registered Components 1 | . . . . . 1 Fabricator Hacks . | . . . . . . Repair Station Hacks . | . . . . . . Recycling Unit Hacks . | . . . . . . Scanalyzer . | . . . . . . Garrison Access Hacks . | . . . . . . Unauthorized Hacks 1 | . 1 . . . . Terminals 1 | . 1 . . . . Skim 1 | . 1 . . . . Fabricators . | . . . . . . Repair Stations . | . . . . . . Recycling Units . | . . . . . . Scanalyzers . | . . . . . . Garrison Access . | . . . . . . Data Cores Recovered . | . . . . . . Used . | . . . . . . Hacking Detections 8 | . 1 . . . 7 Full Trace Events . | . . . . . . Feedback Events . | . . . . . . Feedback Blocked . | . . . . . . Robot Schematics Acquired . | . . . . . . Robots Built . | . . . . . . Authchips . | . . . . . . Time . | . . . . . . Total Robot Build Rating . | . . . . . . Part Schematics Acquired . | . . . . . . Parts Built . | . . . . . . Authchips . | . . . . . . Time . | . . . . . . Total Part Build Rating . | . . . . . . Parts Repaired . | . . . . . . Time . | . . . . . . Parts Recycled . | . . . . . . Recycled Matter . | . . . . . . Retrieved Matter . | . . . . . . Retrieved Components . | . . . . . . Parts Scanalyzed . | . . . . . . Part Schematics Acquired . | . . . . . . Parts Damaged . | . . . . . . Bothacking | -11 -10 -10 -10 -9 -8 ------------ Run | Yrd Mat Min Exi Min Mat Used RIF Installer . | . . . . . . Robots Hacked . | . . . . . . Non-combat . | . . . . . . Combat . | . . . . . . Robot Hacks Applied . | . . . . . . Relay Couplers Released . | . . . . . . Fabnet Peak Effective % . | . . . . . . Robots Rewired . | . . . . . . Allies Hacked . | . . . . . . Hacks Repelled . | . . . . . . Allies | -11 -10 -10 -10 -9 -8 -------- Run | Yrd Mat Min Exi Min Mat Total Allies . | . . . . . . Largest Group . | . . . . . . Highest-Rated Group . | . . . . . . Highest-Rated Ally . | . . . . . . Total Orders . | . . . . . . Ally Attacks . | . . . . . . Total Damage . | . . . . . . Kills . | . . . . . . Allies Corrupted . | . . . . . . Allies Melted . | . . . . . . Intel | -11 -10 -10 -10 -9 -8 ------- Run | Yrd Mat Min Exi Min Mat Robot Analysis Total 2 | . 1 . . . 1 Derelict Logs Recovered . | . . . . . . Drone Launches . | . . . . . . Drone Recoveries . | . . . . . . Exploration | -11 -10 -10 -10 -9 -8 ------------- Run | Yrd Mat Min Exi Min Mat Turns Passed 2711 | 226 211 140 1282 120 732 Spaces Moved 2393 | 92 135 112 1053 69 932 Core 200 | . . . . . 200 Treads . | . . . . . . Legs 1621 | 92 135 112 1053 69 160 Wheels . | . . . . . . Hover 38 | . . . . . 38 Flight 534 | . . . . . 534 Fastest Speed 20 | 120 120 120 120 120 20 Average Speed 99 | 120 120 120 120 120 66 Slowest Speed 500 | 120 120 120 120 120 500 Overloaded Moves 8 | . . . . . 8 Propulsion Burnouts . | . . . . . . Robots Hopped 15 | . . . . . 15 Cave-ins Triggered . | . . . . . . Exploration Rate (%) 42 | 6 36 33 93 9 76 Regions Visited 5 Branch Regions 3 Pre-discovered Areas 1 | . . . 1 . . Known Exits Taken . | . . . . . . Unknown Exits Taken 5 | 1 1 1 1 1 . Scrap Searched 1 | . . 1 . . . Spaces Dug 8 | . . . . . 8 Terrain Destroyed 36 | . . . . . 36 Melee . | . . . . . . Projectile 36 | . . . . . 36 AOE . | . . . . . . Terrain Rammed . | . . . . . . Walls Destroyed . | . . . . . . Machines Disabled . | . . . . . . Actions | -11 -10 -10 -10 -9 -8 --------- Run | Yrd Mat Min Exi Min Mat Total 2586 | 139 158 117 1074 83 1015 Wait 18 | . . . . . 18 Move 2358 | 91 134 111 1052 68 902 Hop 15 | . . . . . 15 Pick Up 23 | 3 2 2 5 . 11 Fast Attach 10 | 1 . . . 1 8 Attach 13 | . . . 2 . 11 Detach 4 | . . . . . 4 Swap 7 | . 2 . 3 . 2 Drop 22 | 1 3 2 8 . 8 Fire 102 | 43 17 1 . 14 27 Melee . | . . . . . . Ram 5 | . . . . . 5 Kick 5 | . . 1 . . 4 Crush . | . . . . . . Escape Stasis . | . . . . . . Rewire 4 | . . . 4 . . Trap . | . . . . . . Miscellaneous . | . . . . . . Route ------- -11/Scrapyard -10/Materials -10/Mines -10/Exiles (discovered 2 exits: [*Min x2]) -9/Mines -8/Materials (discovered 3 exits: *Fac / *Sto x2) History --------- Turn | Location | Event 30 | -11/Scrapyard | Discovered new exit (range 3) 227 | -11/Scrapyard | Entered Materials 304 | -10/Materials | Build established: Mutant 355 | -10/Materials | Discovered new exit (range 8) 388 | -10/Materials | Met 8R-AWN 438 | -10/Materials | Entered Mines 440 | -10/Mines | Followed 8R-AWN into the Mines 550 | -10/Mines | Discovered new exit (range 10) 578 | -10/Mines | Entered Exiles 620 | -10/Exiles | Welcomed by 8R-AWN 648 | -10/Exiles | Met EX-HEX 762 | -10/Exiles | Met EX-DEC 827 | -10/Exiles | Visited The Gauntlet 1011 | -10/Exiles | Learned location of Zion (-7) 1065 | -10/Exiles | Met EX-BIN 1387 | -10/Exiles | Aligned with FarCom system 1388 | -10/Exiles | Given EX-Vault access code 1424 | -10/Exiles | Opened EX-Vault 1427 | -10/Exiles | Found Prototype Storage 1496 | -10/Exiles | Identified Superbattery 1509 | -10/Exiles | Found Prototype Device 1510 | -10/Exiles | Identified Trap Reconfigurator 1517 | -10/Exiles | Found Prototype Ballistic Gun 1542 | -10/Exiles | Warned to stay clear of 0b10 Research branches 1613 | -10/Exiles | Learned about 8R-AWN's background 1648 | -10/Exiles | Discovered new exit (range 14) 1803 | -10/Exiles | Build established: Scavenger-Mutant 1844 | -10/Exiles | Discovered new exit (range 11) 1860 | -10/Exiles | Left Exiles lab with XL Autogun Array 1860 | -10/Exiles | Entered Mines 1904 | -9/Mines | Discovered new exit (range 12) 1980 | -9/Mines | Entered Materials 1980 | -8/Materials | Evolved 4 slots: Propulsion x1, Utility x1, Weapon x2 1990 | -8/Materials | Identified XL Autogun Array 2201 | -8/Materials | Build established: Scavenger-Skirmisher 2355 | -8/Materials | Lost 3 parts (1n2u) 2456 | -8/Materials | Core integrity fell below 50% 2572 | -8/Materials | Discovered new exit (range 6) 2574 | -8/Materials | Identified exit to Storage 2597 | -8/Materials | Discovered new exit (range 15) 2606 | -8/Materials | Identified exit to Factory 2648 | -8/Materials | Build established: Mutant 2683 | -8/Materials | Discovered exit to Storage (range 14) 2704 | -8/Materials | Core integrity fell below 20% 2712 | -8/Materials | Destroyed by H-61 Shepherd with Heavy Assault Cannon Last Messages --------------- 02687_ C-17 Slicer destroyed. 02689_ System corrupted: XL Autogun Array jammed. 02690_ C-17 Slicer destroyed. 02695_ Acquired Surge Thruster. 02698_ Airjet destroyed. 02699_ Slug penetrates Wall. 02699_ Knocked back. XL Autogun Array falls apart. 02701_ System corrupted: Energy discharge (-36). 02701_ Acquired Surge Thruster. 02702_ Acquired 20 matter. 02703_ Acquired Surge Thruster. 02703_ Imp. Hover Unit destroyed. 02703_ Critical hit (Blast). 02705_ Acquired Surge Thruster. 02706_ Acquired 25 matter. 02708_ Surge Thruster destroyed. 02710_ Knocked back. 02712_ Penetrated by Slug. Map ----- +----------------------------------------------------+ | | | | | | | | | | | | | | | | | | | ?????????????????????????????????????????????????? | | ?????????????????????????????????????????????????? | | ????????????????##????????##?????????????????????? | | ??????????????#?# #??????? #?????????????????????? | | #####?????????#"##"#######"#############?????????? | | """ #?????????# % # #?????????? | | """ #????????## %/ + Y #?????????? | | """ #????????#"/[ % [[ #####+####+#####???????? | | #????????##/[ *=[!%#?# # #???????? | | #?????????#/[ *[% #?# T # #???????? | | "T" #?????????# ;Y ### # #???????? | | #####?????????# ; + # #???????? | | ??????????????# ;H ### # #???????? | | ??????????????# # #?# = # #???????? | | ??????????????##########g #?# # [!! #???????? | | ???????????????????????#gg#?##### [! #???????? | | ???????????????????????# @#?????# !! #???????? | | ??????????????????????# % #????#######+########## | | ??????????????????????# #??????????# #?# # | | #######???????????????# > #??????????#s#?# " # | | #???????????????# #??????????#s#?# T =# | | "" #???????????????## ##???????####s### " # | | "" #????????????????# #????????# w # # | | "" = #????????????????+ #????##### # # | | #????????????????# g # """ # | | #????????????????# bg / """ # | | " ##???????????????######+###### # """ # | | " "#???????????????????????????# # # | | "#??#######??????????????????### #### """ # | | +#####"####! #????????????????????# #### """ # | | #????????????????????# + """ # | | #????????????????????# #### # | | #????????????????????# #??######## | | +########## #????????????????????# #?????????? | | ??????????## ##????????????#########/#?????????? | | ???????????# #?????????????# #?????????? | | ???????????# #?????????????# """ #?????????? | | ???????????# ############### """"" #?????????? | | ???????????# # """"" #?????????? | | ???????????# / """"" #?????????? | | ???????????# # """ =#?#???????? | +----------------------------------------------------+ Best States ------------- Heat Dissipation 31 Energy Generation 10 Energy Capacity 250 Matter Stores 300 Matter Capacity 300 Sight Range 16 Terrain Scan Range 16 Terrain Scan Density 110 Armor Coverage 225 Evasion (%) 63 Target Analysis 5 Item Schematics ----------------- None Robot Schematics ------------------ None Fabricated ------------ Nothing Alien Tech Used ----------------- None Achievements -------------- None Challenges ------------ None Game ------ Seed TargetModifiedFlakker Manual? 0 Play Time 00:33:26 Cumulative 92.8 hours Start 2024.12.01 @ 19:40:41 End 2024.12.01 @ 20:20:59 Sessions 1 Manual Loads 0 Difficulty Rogue Special Mode None Game No. 134 Rogue 134 Adventurer 0 Explorer 0 Win Type - Total 0 Types 0/0/0/0/0/0/0/0/0 Lore% 56 Gallery% 46 Achievement% 33 Wizard Run 0 Options --------- Layout 1 ASCII 0 Keyboard 0 Movement Mouse Keybinds 0 Fullscreen 1 Font 24/Smallcaps Map View 50x40 Zoom Use 0% Tactical HUD 1 Map Filters NONE Filters NONE Steam 1 RUN: 29aa4e53-df9e-48db-bcd5-da2add8f4ba8